[Event "Titled Tuesday Blitz April 12 Early 2022"]
[White "Xiong, Jeffery"]
[Black "Atakhan, Abtin"]
[WhiteFideId "2047640"]
[BlackFideId "22502203"]
[WhiteElo "2727"]
[BlackElo "2094"]
[Result "1-0"]
[Round "05"]
[TimeControl "180+1"]
[Date "2022.04.12"]
[WhiteClock "0:00:32"]
[BlackClock "0:00:01"]

1. d4 {[%clk 0:03:00]}  Nf6 {[%clk 0:03:00]} 2. c4 {[%clk 0:03:01]}  g6 {[%clk 0:03:00]} 3. Nc3 {[%clk 0:03:01]}  d5 {[%clk 0:03:00]} 4. Nf3 {[%clk 0:02:59]}  Bg7 {[%clk 0:03:01]} 5. h4 {[%clk 0:03:00]}  c6 {[%clk 0:02:52]} 6. cxd5 {[%clk 0:03:00]}  cxd5 {[%clk 0:02:52]} 7. Bf4 {[%clk 0:03:00]}  O-O {[%clk 0:02:50]} 8. e3 {[%clk 0:02:59]}  Nc6 {[%clk 0:02:49]} 9. Qb3 {[%clk 0:02:58]}  a6 {[%clk 0:02:47]} 10. Ne5 {[%clk 0:02:51]}  Nh5 {[%clk 0:02:32]} 11. Bh2 {[%clk 0:02:30]}  Nxe5 {[%clk 0:02:21]} 12. dxe5 {[%clk 0:02:31]}  Be6 {[%clk 0:02:17]} 13. Rd1 {[%clk 0:02:05]}  Qc7 {[%clk 0:01:59]} 14. Nxd5 {[%clk 0:02:04]}  Bxd5 {[%clk 0:01:46]} 15. Rxd5 {[%clk 0:02:05]}  Rfd8 {[%clk 0:01:39]} 16. Bc4 {[%clk 0:02:02]}  Rxd5 {[%clk 0:01:23]} 17. Bxd5 {[%clk 0:02:03]}  Qc1+ {[%clk 0:01:18]} 18. Qd1 {[%clk 0:01:44]}  Qxd1+ {[%clk 0:01:18]} 19. Kxd1 {[%clk 0:01:45]}  Rd8 {[%clk 0:01:17]} 20. e4 {[%clk 0:01:46]}  e6 {[%clk 0:01:13]} 21. g4 {[%clk 0:01:46]}  exd5 {[%clk 0:00:58]} 22. gxh5 {[%clk 0:01:47]}  dxe4+ {[%clk 0:00:58]} 23. Ke2 {[%clk 0:01:47]}  gxh5 {[%clk 0:00:55]} 24. Rg1 {[%clk 0:01:27]}  Kf8 {[%clk 0:00:50]} 25. Rg5 {[%clk 0:01:25]}  Bh6 {[%clk 0:00:38]} 26. Rxh5 {[%clk 0:01:25]}  Kg7 {[%clk 0:00:37]} 27. e6 {[%clk 0:00:59]}  fxe6 {[%clk 0:00:37]} 28. Re5 {[%clk 0:00:57]}  Rd2+ {[%clk 0:00:32]} 29. Kf1 {[%clk 0:00:57]}  e3 {[%clk 0:00:30]} 30. Rxe6 {[%clk 0:00:51]}  Rxf2+ {[%clk 0:00:29]} 31. Kg1 {[%clk 0:00:52]}  Rc2 {[%clk 0:00:20]} 32. Be5+ {[%clk 0:00:50]}  Kf7 {[%clk 0:00:16]} 33. Rxh6 {[%clk 0:00:51]}  Rc1+ {[%clk 0:00:17]} 34. Kg2 {[%clk 0:00:51]}  e2 {[%clk 0:00:17]} 35. Bg3 {[%clk 0:00:42]}  e1=Q {[%clk 0:00:05]} 36. Bxe1 {[%clk 0:00:41]}  Rxe1 {[%clk 0:00:04]} 37. Rxh7+ {[%clk 0:00:42]}  Kg6 {[%clk 0:00:03]} 38. Rxb7 {[%clk 0:00:43]}  Kh5 {[%clk 0:00:03]} 39. Rb4 {[%clk 0:00:38]}  Re3 {[%clk 0:00:02]} 40. Kf2 {[%clk 0:00:37]}  Rh3 {[%clk 0:00:02]} 41. Ke1 {[%clk 0:00:36]}  Rh2 {[%clk 0:00:01]} 42. Kd1 {[%clk 0:00:36]}  a5 {[%clk 0:00:02]} 43. Rb8 {[%clk 0:00:33]}  Kxh4 {[%clk 0:00:01]} 44. Rh8+ {[%clk 0:00:32]} 1-0


[Site "https://www.chess.com"]

[Event "Titled Tuesday Blitz April 12 Early 2022"]
[White "Yang, Kaiqi"]
[Black "Nogerbek, Kazybek"]
[WhiteFideId "8604398"]
[BlackFideId "13710427"]
[WhiteElo "2373"]
[BlackElo "2466"]
[Result "0-1"]
[Round "05"]
[TimeControl "180+1"]
[Date "2022.04.12"]
[WhiteClock "0:00:09"]
[BlackClock "0:00:56"]

1. e4 {[%clk 0:03:00]}  e5 {[%clk 0:02:17]} 2. Nf3 {[%clk 0:02:59]}  Nc6 {[%clk 0:02:16]} 3. d4 {[%clk 0:02:59]}  exd4 {[%clk 0:02:15]} 4. Bc4 {[%clk 0:02:59]}  Nf6 {[%clk 0:02:14]} 5. e5 {[%clk 0:02:58]}  d5 {[%clk 0:02:06]} 6. Bb5 {[%clk 0:02:58]}  Ne4 {[%clk 0:02:05]} 7. Nxd4 {[%clk 0:02:58]}  Bd7 {[%clk 0:02:05]} 8. Bxc6 {[%clk 0:02:58]}  bxc6 {[%clk 0:02:06]} 9. O-O {[%clk 0:02:58]}  Be7 {[%clk 0:02:07]} 10. f3 {[%clk 0:02:56]}  Nc5 {[%clk 0:02:07]} 11. Be3 {[%clk 0:02:50]}  O-O {[%clk 0:02:06]} 12. Nd2 {[%clk 0:02:44]}  a5 {[%clk 0:02:01]} 13. f4 {[%clk 0:02:37]}  f5 {[%clk 0:01:56]} 14. N2b3 {[%clk 0:02:25]}  Ne4 {[%clk 0:01:53]} 15. a4 {[%clk 0:02:11]}  c5 {[%clk 0:01:50]} 16. Nf3 {[%clk 0:02:10]}  d4 {[%clk 0:01:49]} 17. Bf2 {[%clk 0:02:06]}  Bc6 {[%clk 0:01:47]} 18. Nbd2 {[%clk 0:01:44]}  Rb8 {[%clk 0:01:46]} 19. b3 {[%clk 0:01:44]}  Nc3 {[%clk 0:01:37]} 20. Qe1 {[%clk 0:01:42]}  Bd5 {[%clk 0:01:38]} 21. Kh1 {[%clk 0:01:34]}  Kh8 {[%clk 0:01:36]} 22. Bh4 {[%clk 0:01:31]}  Rb6 {[%clk 0:01:33]} 23. Bxe7 {[%clk 0:01:28]}  Qxe7 {[%clk 0:01:33]} 24. Nb1 {[%clk 0:01:24]}  Ne4 {[%clk 0:01:31]} 25. Qxa5 {[%clk 0:01:19]}  Rh6 {[%clk 0:01:27]} 26. Qe1 {[%clk 0:01:19]}  g5 {[%clk 0:01:27]} 27. Nbd2 {[%clk 0:01:02]}  g4 {[%clk 0:01:24]} 28. Ng1 {[%clk 0:00:35]}  Nxd2 {[%clk 0:01:06]} 29. Qxd2 {[%clk 0:00:16]}  Qh4 {[%clk 0:01:01]} 30. Nf3 {[%clk 0:00:15]}  gxf3 {[%clk 0:00:58]} 31. gxf3 {[%clk 0:00:16]}  Qh3 {[%clk 0:00:58]} 32. Qg2 {[%clk 0:00:14]}  Qh4 {[%clk 0:00:58]} 33. Rg1 {[%clk 0:00:09]}  Bxf3 {[%clk 0:00:56]} 0-1


[Site "https://www.chess.com"]

[Event "Titled Tuesday Blitz April 12 Early 2022"]
[White "Zanette, Edgard Vinicius"]
[Black "Horcajuelo Rocamora, Martin"]
[WhiteFideId "2109263"]
[BlackFideId "24573027"]
[WhiteElo "2182"]
[BlackElo "1822"]
[Result "1-0"]
[Round "05"]
[TimeControl "180+1"]
[Date "2022.04.13"]
[WhiteClock "0:00:10"]
[BlackClock "0:00:33"]

1. e4 {[%clk 0:02:58]}  e5 {[%clk 0:02:45]} 2. Nf3 {[%clk 0:02:56]}  Nc6 {[%clk 0:02:45]} 3. Bb5 {[%clk 0:02:55]}  Nf6 {[%clk 0:02:44]} 4. d3 {[%clk 0:02:54]}  Bc5 {[%clk 0:02:42]} 5. O-O {[%clk 0:02:53]}  a6 {[%clk 0:02:41]} 6. Bxc6 {[%clk 0:02:47]}  dxc6 {[%clk 0:02:41]} 7. Nxe5 {[%clk 0:02:48]}  O-O {[%clk 0:02:42]} 8. Be3 {[%clk 0:02:45]}  Bd6 {[%clk 0:02:35]} 9. Nc4 {[%clk 0:02:42]}  Be7 {[%clk 0:02:34]} 10. h3 {[%clk 0:02:39]}  Be6 {[%clk 0:02:31]} 11. Nbd2 {[%clk 0:02:32]}  c5 {[%clk 0:02:28]} 12. b3 {[%clk 0:02:23]}  Nd7 {[%clk 0:02:24]} 13. f4 {[%clk 0:02:21]}  f5 {[%clk 0:02:07]} 14. e5 {[%clk 0:02:09]}  b5 {[%clk 0:02:05]} 15. Nb2 {[%clk 0:02:06]}  Nb6 {[%clk 0:02:06]} 16. Qf3 {[%clk 0:01:44]}  Nd5 {[%clk 0:02:02]} 17. Bf2 {[%clk 0:01:21]}  Qd7 {[%clk 0:02:00]} 18. a3 {[%clk 0:01:11]}  Nc3 {[%clk 0:01:57]} 19. Be3 {[%clk 0:01:03]}  Nd5 {[%clk 0:01:50]} 20. Bf2 {[%clk 0:00:54]}  Rad8 {[%clk 0:01:42]} 21. Rae1 {[%clk 0:00:36]}  Nc3 {[%clk 0:01:31]} 22. Nb1 {[%clk 0:00:35]}  Nxb1 {[%clk 0:01:27]} 23. Rxb1 {[%clk 0:00:34]}  g6 {[%clk 0:01:18]} 24. Qe3 {[%clk 0:00:34]}  Bd5 {[%clk 0:01:16]} 25. c4 {[%clk 0:00:31]}  Bb7 {[%clk 0:01:15]} 26. Rbd1 {[%clk 0:00:28]}  Qc6 {[%clk 0:01:12]} 27. Qg3 {[%clk 0:00:29]}  Bh4 {[%clk 0:01:11]} 28. Qh2 {[%clk 0:00:27]}  Bxf2+ {[%clk 0:01:11]} 29. Rxf2 {[%clk 0:00:28]}  Rd4 {[%clk 0:01:11]} 30. Rdd2 {[%clk 0:00:23]}  Rfd8 {[%clk 0:01:10]} 31. Qg3 {[%clk 0:00:23]}  a5 {[%clk 0:01:02]} 32. Qe3 {[%clk 0:00:21]}  a4 {[%clk 0:01:01]} 33. bxa4 {[%clk 0:00:21]}  bxa4 {[%clk 0:01:01]} 34. Nd1 {[%clk 0:00:20]}  Ba6 {[%clk 0:00:58]} 35. Nc3 {[%clk 0:00:20]}  Qe6 {[%clk 0:00:56]} 36. Nd5 {[%clk 0:00:20]}  c6 {[%clk 0:00:57]} 37. Nf6+ {[%clk 0:00:19]}  Kg7 {[%clk 0:00:57]} 38. g4 {[%clk 0:00:19]}  Qc8 {[%clk 0:00:50]} 39. gxf5 {[%clk 0:00:17]}  Qxf5 {[%clk 0:00:49]} 40. Rg2 {[%clk 0:00:18]}  Rxd3 {[%clk 0:00:48]} 41. Qxc5 {[%clk 0:00:15]}  Qe6 {[%clk 0:00:42]} 42. Rxd3 {[%clk 0:00:10]}  Rxd3 {[%clk 0:00:43]} 43. Qa7+ {[%clk 0:00:11]}  Qf7 {[%clk 0:00:39]} 44. Qxa6 {[%clk 0:00:11]}  Rd1+ {[%clk 0:00:39]} 45. Kh2 {[%clk 0:00:10]}  Kh6 {[%clk 0:00:38]} 46. Qxc6 {[%clk 0:00:09]}  Rf1 {[%clk 0:00:34]} 47. Ng4+ {[%clk 0:00:09]}  Kh5 {[%clk 0:00:33]} 48. Qf6 {[%clk 0:00:10]}  Qxf6 {[%clk 0:00:32]} 49. Nxf6+ {[%clk 0:00:10]}  Kh6 {[%clk 0:00:33]} 50. e6 {[%clk 0:00:10]} 1-0


[Site "https://www.chess.com"]

[Event "Titled Tuesday Blitz April 12 Early 2022"]
[White "Zavgorodniy, Sergiy"]
[Black "Sychev, Klementy"]
[WhiteFideId "14110148"]
[BlackFideId "4114060"]
[WhiteElo "2420"]
[BlackElo "2564"]
[Result "0-1"]
[Round "05"]
[TimeControl "180+1"]
[Date "2022.04.12"]
[WhiteClock "0:02:05"]
[BlackClock "0:02:14"]

1. e4 {[%clk 0:03:00]}  c5 {[%clk 0:02:50]} 2. Nf3 {[%clk 0:02:59]}  e6 {[%clk 0:02:49]} 3. d3 {[%clk 0:02:57]}  Nc6 {[%clk 0:02:46]} 4. g3 {[%clk 0:02:54]}  g6 {[%clk 0:02:45]} 5. Bg5 {[%clk 0:02:53]}  f6 {[%clk 0:02:27]} 6. Be3 {[%clk 0:02:45]}  d5 {[%clk 0:02:26]} 7. exd5 {[%clk 0:02:39]}  exd5 {[%clk 0:02:26]} 8. d4 {[%clk 0:02:39]}  Bg4 {[%clk 0:02:26]} 9. Bg2 {[%clk 0:02:20]}  cxd4 {[%clk 0:02:22]} 10. Bxd4 {[%clk 0:02:18]}  Qe7+ {[%clk 0:02:22]} 11. Be3 {[%clk 0:02:14]}  d4 {[%clk 0:02:17]} 12. O-O {[%clk 0:02:05]}  dxe3 {[%clk 0:02:14]} 0-1


[Site "https://www.chess.com"]

[Event "Titled Tuesday Blitz April 12 Early 2022"]
[White "Zhao, Jun"]
[Black "Dang, Hoang Son"]
[WhiteFideId "8602522"]
[BlackFideId "12402435"]
[WhiteElo "2547"]
[BlackElo "2252"]
[Result "1-0"]
[Round "05"]
[TimeControl "180+1"]
[Date "2022.04.12"]
[WhiteClock "0:00:05"]
[BlackClock "0:00:02"]

1. d4 {[%clk 0:02:57]}  Nf6 {[%clk 0:02:59]} 2. c4 {[%clk 0:02:56]}  g6 {[%clk 0:02:59]} 3. Nf3 {[%clk 0:02:55]}  Bg7 {[%clk 0:02:59]} 4. e3 {[%clk 0:02:56]}  O-O {[%clk 0:02:59]} 5. Be2 {[%clk 0:02:56]}  d6 {[%clk 0:02:59]} 6. O-O {[%clk 0:02:56]}  Nbd7 {[%clk 0:02:59]} 7. Nc3 {[%clk 0:02:56]}  e5 {[%clk 0:02:58]} 8. Qc2 {[%clk 0:02:54]}  Qe7 {[%clk 0:02:57]} 9. b4 {[%clk 0:02:54]}  c6 {[%clk 0:02:55]} 10. b5 {[%clk 0:02:50]}  e4 {[%clk 0:02:43]} 11. Nd2 {[%clk 0:02:49]}  Re8 {[%clk 0:02:41]} 12. Ba3 {[%clk 0:02:45]}  c5 {[%clk 0:02:38]} 13. Rfe1 {[%clk 0:02:37]}  b6 {[%clk 0:02:19]} 14. Bb2 {[%clk 0:02:35]}  Bb7 {[%clk 0:02:09]} 15. a4 {[%clk 0:02:35]}  d5 {[%clk 0:01:57]} 16. Nxd5 {[%clk 0:01:56]}  Nxd5 {[%clk 0:01:29]} 17. cxd5 {[%clk 0:01:55]}  cxd4 {[%clk 0:01:29]} 18. Bxd4 {[%clk 0:01:53]}  Bxd4 {[%clk 0:01:28]} 19. exd4 {[%clk 0:01:54]}  Bxd5 {[%clk 0:01:28]} 20. Nf1 {[%clk 0:01:54]}  f5 {[%clk 0:01:22]} 21. Ne3 {[%clk 0:01:51]}  Bf7 {[%clk 0:01:22]} 22. Bc4 {[%clk 0:01:47]}  Rac8 {[%clk 0:01:21]} 23. Qb3 {[%clk 0:01:44]}  f4 {[%clk 0:01:02]} 24. Nd5 {[%clk 0:01:19]}  Qd6 {[%clk 0:00:42]} 25. Nxb6 {[%clk 0:01:09]}  Rxc4 {[%clk 0:00:28]} 26. Nxc4 {[%clk 0:01:08]}  Qd5 {[%clk 0:00:27]} 27. Rac1 {[%clk 0:01:03]}  Nb6 {[%clk 0:00:26]} 28. Na5 {[%clk 0:00:47]}  Qxb3 {[%clk 0:00:24]} 29. Nxb3 {[%clk 0:00:47]}  Bxb3 {[%clk 0:00:25]} 30. a5 {[%clk 0:00:46]}  Nc4 {[%clk 0:00:21]} 31. Rc3 {[%clk 0:00:24]}  Nxa5 {[%clk 0:00:18]} 32. Ra1 {[%clk 0:00:24]}  Rd8 {[%clk 0:00:17]} 33. Rxa5 {[%clk 0:00:22]}  Rxd4 {[%clk 0:00:17]} 34. h4 {[%clk 0:00:18]}  Rd3 {[%clk 0:00:15]} 35. Rc7 {[%clk 0:00:12]}  e3 {[%clk 0:00:07]} 36. fxe3 {[%clk 0:00:10]}  fxe3 {[%clk 0:00:07]} 37. Raxa7 {[%clk 0:00:11]}  Rd1+ {[%clk 0:00:08]} 38. Kh2 {[%clk 0:00:11]}  Rd8 {[%clk 0:00:09]} 39. Re7 {[%clk 0:00:09]}  Rb8 {[%clk 0:00:04]} 40. Rxe3 {[%clk 0:00:09]}  Bf7 {[%clk 0:00:05]} 41. Ree7 {[%clk 0:00:08]}  Bd5 {[%clk 0:00:04]} 42. b6 {[%clk 0:00:08]}  Kf8 {[%clk 0:00:02]} 43. Rxh7 {[%clk 0:00:06]}  Bg8 {[%clk 0:00:02]} 44. Rhc7 {[%clk 0:00:05]}  Be6 {[%clk 0:00:02]} 45. b7 {[%clk 0:00:05]}  Bd5 {[%clk 0:00:02]} 46. Rc8+ {[%clk 0:00:05]} 1-0


[Site "https://www.chess.com"]

[Event "Titled Tuesday Blitz April 12 Early 2022"]
[White "Zlatin, Alexander"]
[Black "Andreikin, Dmitry"]
[WhiteFideId "2810549"]
[BlackFideId "4158814"]
[WhiteElo "2228"]
[BlackElo "2736"]
[Result "0-1"]
[Round "05"]
[TimeControl "180+1"]
[Date "2022.04.13"]
[WhiteClock "0:00:02"]
[BlackClock "0:00:34"]

1. d4 {[%clk 0:02:52]}  d5 {[%clk 0:02:59]} 2. Nc3 {[%clk 0:02:52]}  Bf5 {[%clk 0:02:58]} 3. Bf4 {[%clk 0:02:51]}  e6 {[%clk 0:02:58]} 4. e3 {[%clk 0:02:51]}  Bd6 {[%clk 0:02:58]} 5. Bd3 {[%clk 0:02:50]}  Bxf4 {[%clk 0:02:57]} 6. exf4 {[%clk 0:02:51]}  Ne7 {[%clk 0:02:57]} 7. Nf3 {[%clk 0:02:49]}  O-O {[%clk 0:02:57]} 8. O-O {[%clk 0:02:49]}  Nd7 {[%clk 0:02:54]} 9. Re1 {[%clk 0:02:48]}  c5 {[%clk 0:02:50]} 10. dxc5 {[%clk 0:02:44]}  Nxc5 {[%clk 0:02:49]} 11. Bxf5 {[%clk 0:02:42]}  Nxf5 {[%clk 0:02:50]} 12. Nd4 {[%clk 0:02:39]}  Qf6 {[%clk 0:02:50]} 13. Nxf5 {[%clk 0:02:37]}  Qxf5 {[%clk 0:02:51]} 14. g3 {[%clk 0:02:19]}  Qf6 {[%clk 0:02:50]} 15. Qe2 {[%clk 0:02:09]}  Rac8 {[%clk 0:02:23]} 16. Rad1 {[%clk 0:02:05]}  a6 {[%clk 0:02:15]} 17. Qe3 {[%clk 0:01:50]}  b5 {[%clk 0:02:09]} 18. Qd4 {[%clk 0:01:51]}  Qxd4 {[%clk 0:02:05]} 19. Rxd4 {[%clk 0:01:50]}  g6 {[%clk 0:02:06]} 20. Kg2 {[%clk 0:01:47]}  Nd7 {[%clk 0:02:01]} 21. a4 {[%clk 0:01:41]}  Rc4 {[%clk 0:01:58]} 22. Red1 {[%clk 0:01:30]}  Rb8 {[%clk 0:01:52]} 23. axb5 {[%clk 0:01:15]}  axb5 {[%clk 0:01:53]} 24. Nxb5 {[%clk 0:01:08]}  Rxc2 {[%clk 0:00:58]} 25. Na3 {[%clk 0:00:58]}  Rcxb2 {[%clk 0:00:57]} 26. R1d2 {[%clk 0:00:58]}  Nf6 {[%clk 0:00:56]} 27. f3 {[%clk 0:00:50]}  Ne8 {[%clk 0:00:52]} 28. Nc2 {[%clk 0:00:39]}  Nd6 {[%clk 0:00:48]} 29. Ne3 {[%clk 0:00:38]}  h5 {[%clk 0:00:47]} 30. Kh3 {[%clk 0:00:36]}  Kg7 {[%clk 0:00:46]} 31. g4 {[%clk 0:00:36]}  hxg4+ {[%clk 0:00:45]} 32. Kxg4 {[%clk 0:00:30]}  R8b3 {[%clk 0:00:43]} 33. Rxb2 {[%clk 0:00:24]}  Rxb2 {[%clk 0:00:44]} 34. h4 {[%clk 0:00:24]}  Rb3 {[%clk 0:00:43]} 35. Nc2 {[%clk 0:00:18]}  Nf5 {[%clk 0:00:43]} 36. Rb4 {[%clk 0:00:13]}  Rc3 {[%clk 0:00:40]} 37. Nd4 {[%clk 0:00:11]}  Rc4 {[%clk 0:00:38]} 38. Rxc4 {[%clk 0:00:08]}  dxc4 {[%clk 0:00:39]} 39. Nb5 {[%clk 0:00:08]}  Ne3+ {[%clk 0:00:37]} 40. Kg3 {[%clk 0:00:08]}  Nd5 {[%clk 0:00:38]} 41. Nd4 {[%clk 0:00:07]}  c3 {[%clk 0:00:38]} 42. Kf2 {[%clk 0:00:08]}  Nb4 {[%clk 0:00:37]} 43. Ke2 {[%clk 0:00:07]}  Nd5 {[%clk 0:00:38]} 44. Kd3 {[%clk 0:00:05]}  Nxf4+ {[%clk 0:00:38]} 45. Kxc3 {[%clk 0:00:05]}  Ng2 {[%clk 0:00:39]} 46. Kd3 {[%clk 0:00:05]}  Nxh4 {[%clk 0:00:39]} 47. Ke4 {[%clk 0:00:06]}  Kf6 {[%clk 0:00:40]} 48. f4 {[%clk 0:00:06]}  Nf5 {[%clk 0:00:40]} 49. Nf3 {[%clk 0:00:06]}  Ne7 {[%clk 0:00:41]} 50. Ne5 {[%clk 0:00:07]}  Nd5 {[%clk 0:00:40]} 51. Nd7+ {[%clk 0:00:06]}  Ke7 {[%clk 0:00:40]} 52. Nc5 {[%clk 0:00:07]}  Nf6+ {[%clk 0:00:38]} 53. Kf3 {[%clk 0:00:06]}  Nd7 {[%clk 0:00:39]} 54. Ne4 {[%clk 0:00:06]}  f5 {[%clk 0:00:37]} 55. Ng5 {[%clk 0:00:07]}  Kf6 {[%clk 0:00:38]} 56. Nh7+ {[%clk 0:00:06]}  Ke7 {[%clk 0:00:38]} 57. Ng5 {[%clk 0:00:07]}  e5 {[%clk 0:00:38]} 58. fxe5 {[%clk 0:00:07]}  Nxe5+ {[%clk 0:00:39]} 59. Kf4 {[%clk 0:00:07]}  Nf7 {[%clk 0:00:40]} 60. Nf3 {[%clk 0:00:06]}  Kf6 {[%clk 0:00:40]} 61. Kg3 {[%clk 0:00:07]}  g5 {[%clk 0:00:40]} 62. Nd4 {[%clk 0:00:07]}  Ne5 {[%clk 0:00:41]} 63. Ne2 {[%clk 0:00:06]}  Nc6 {[%clk 0:00:39]} 64. Nc3 {[%clk 0:00:05]}  Ke5 {[%clk 0:00:39]} 65. Ne2 {[%clk 0:00:05]}  Ke4 {[%clk 0:00:38]} 66. Nc3+ {[%clk 0:00:05]}  Kd4 {[%clk 0:00:39]} 67. Nb5+ {[%clk 0:00:05]}  Ke3 {[%clk 0:00:38]} 68. Nd6 {[%clk 0:00:03]}  Nd4 {[%clk 0:00:38]} 69. Nc4+ {[%clk 0:00:02]}  Ke2 {[%clk 0:00:38]} 70. Nd6 {[%clk 0:00:03]}  f4+ {[%clk 0:00:37]} 71. Kg4 {[%clk 0:00:03]}  f3 {[%clk 0:00:37]} 72. Kxg5 {[%clk 0:00:02]}  Kd3 {[%clk 0:00:34]} 73. Kg4 {[%clk 0:00:01]}  f2 {[%clk 0:00:34]} 74. Ne4 {[%clk 0:00:02]}  Kxe4 {[%clk 0:00:34]} 0-1


[Site "https://www.chess.com"]

[Event "Titled Tuesday Blitz April 12 Early 2022"]
[White "Aaditya Dhingra"]
[Black "Zaksaite, Salomeja"]
[WhiteFideId "25678191"]
[BlackFideId "12801496"]
[WhiteElo "1849"]
[BlackElo "1953"]
[Result "1-0"]
[Round "06"]
[TimeControl "180+1"]
[Date "2022.04.13"]
[WhiteClock "0:00:12"]
[BlackClock "0:00:02"]

1. Nf3 {[%clk 0:03:00]}  Nf6 {[%clk 0:02:59]} 2. c4 {[%clk 0:02:59]}  g6 {[%clk 0:02:59]} 3. b3 {[%clk 0:02:58]}  Bg7 {[%clk 0:02:58]} 4. Bb2 {[%clk 0:02:59]}  O-O {[%clk 0:02:58]} 5. g3 {[%clk 0:03:00]}  c6 {[%clk 0:02:59]} 6. Bg2 {[%clk 0:02:59]}  d5 {[%clk 0:02:53]} 7. O-O {[%clk 0:02:59]}  Nbd7 {[%clk 0:02:52]} 8. d3 {[%clk 0:02:59]}  Qc7 {[%clk 0:02:51]} 9. Nc3 {[%clk 0:02:57]}  a6 {[%clk 0:02:50]} 10. Rc1 {[%clk 0:02:56]}  Qd6 {[%clk 0:02:49]} 11. e4 {[%clk 0:02:48]}  d4 {[%clk 0:02:48]} 12. c5 {[%clk 0:02:10]}  Qc7 {[%clk 0:02:35]} 13. Nxd4 {[%clk 0:02:06]}  Nxc5 {[%clk 0:02:32]} 14. Nce2 {[%clk 0:02:01]}  Ne6 {[%clk 0:02:25]} 15. Qc2 {[%clk 0:01:56]}  Rd8 {[%clk 0:02:16]} 16. Nxe6 {[%clk 0:01:56]}  Bxe6 {[%clk 0:02:16]} 17. Nf4 {[%clk 0:01:54]}  Bd7 {[%clk 0:02:12]} 18. e5 {[%clk 0:01:52]}  Ng4 {[%clk 0:02:08]} 19. d4 {[%clk 0:01:49]}  Be8 {[%clk 0:02:07]} 20. h3 {[%clk 0:01:47]}  Nh6 {[%clk 0:02:07]} 21. Rfe1 {[%clk 0:01:44]}  Nf5 {[%clk 0:02:05]} 22. Rcd1 {[%clk 0:01:41]}  e6 {[%clk 0:02:00]} 23. Be4 {[%clk 0:01:34]}  Rac8 {[%clk 0:01:59]} 24. Bxf5 {[%clk 0:01:26]}  exf5 {[%clk 0:01:57]} 25. e6 {[%clk 0:01:24]}  Qd6 {[%clk 0:01:43]} 26. Qc4 {[%clk 0:00:59]}  Bh6 {[%clk 0:01:15]} 27. e7 {[%clk 0:00:42]}  Rd7 {[%clk 0:01:14]} 28. d5 {[%clk 0:00:42]}  Bxf4 {[%clk 0:01:07]} 29. dxc6 {[%clk 0:00:32]}  Qxd1 {[%clk 0:01:04]} 30. Rxd1 {[%clk 0:00:26]}  Rxd1+ {[%clk 0:01:04]} 31. Kh2 {[%clk 0:00:25]}  Bxg3+ {[%clk 0:00:25]} 32. Kxg3 {[%clk 0:00:21]}  Bxc6 {[%clk 0:00:11]} 33. Qc3 {[%clk 0:00:16]}  Rg1+ {[%clk 0:00:08]} 34. Kh4 {[%clk 0:00:15]}  g5+ {[%clk 0:00:08]} 35. Kh5 {[%clk 0:00:15]}  Bf3+ {[%clk 0:00:05]} 36. Qxf3 {[%clk 0:00:15]}  f6 {[%clk 0:00:03]} 37. Qd5+ {[%clk 0:00:14]}  Kg7 {[%clk 0:00:02]} 38. Qd7 {[%clk 0:00:12]} 1-0


[Site "https://www.chess.com"]

[Event "Titled Tuesday Blitz April 12 Early 2022"]
[White "Abdusattorov, Nodirbek"]
[Black "Bluebaum, Matthias"]
[WhiteFideId "14204118"]
[BlackFideId "24651516"]
[WhiteElo "2663"]
[BlackElo "2550"]
[Result "1-0"]
[Round "06"]
[TimeControl "180+1"]
[Date "2022.04.12"]
[WhiteClock "0:00:56"]
[BlackClock "0:00:04"]

1. e4 {[%clk 0:03:00]}  c6 {[%clk 0:02:59]} 2. Nc3 {[%clk 0:02:58]}  d5 {[%clk 0:03:00]} 3. Nf3 {[%clk 0:02:58]}  dxe4 {[%clk 0:03:01]} 4. Nxe4 {[%clk 0:02:58]}  Nf6 {[%clk 0:03:01]} 5. Qe2 {[%clk 0:02:56]}  Nxe4 {[%clk 0:03:02]} 6. Qxe4 {[%clk 0:02:57]}  Nd7 {[%clk 0:03:03]} 7. d4 {[%clk 0:02:56]}  Nf6 {[%clk 0:03:03]} 8. Qd3 {[%clk 0:02:52]}  g6 {[%clk 0:03:00]} 9. Be2 {[%clk 0:02:48]}  Bg7 {[%clk 0:03:01]} 10. O-O {[%clk 0:02:48]}  O-O {[%clk 0:03:01]} 11. Rd1 {[%clk 0:02:45]}  Qc7 {[%clk 0:03:01]} 12. h3 {[%clk 0:02:36]}  Rd8 {[%clk 0:02:59]} 13. c4 {[%clk 0:02:34]}  Bf5 {[%clk 0:02:58]} 14. Qb3 {[%clk 0:02:35]}  a5 {[%clk 0:02:53]} 15. a4 {[%clk 0:02:33]}  h6 {[%clk 0:02:39]} 16. Be3 {[%clk 0:02:32]}  Be6 {[%clk 0:02:35]} 17. d5 {[%clk 0:02:31]}  cxd5 {[%clk 0:02:16]} 18. Bb6 {[%clk 0:02:31]}  Qf4 {[%clk 0:02:13]} 19. Bxd8 {[%clk 0:02:30]}  Rxd8 {[%clk 0:02:14]} 20. Nd4 {[%clk 0:02:23]}  Bc8 {[%clk 0:02:05]} 21. Qf3 {[%clk 0:01:56]}  Qe5 {[%clk 0:02:01]} 22. cxd5 {[%clk 0:01:48]}  Nxd5 {[%clk 0:01:59]} 23. Bc4 {[%clk 0:01:47]}  e6 {[%clk 0:01:56]} 24. Rac1 {[%clk 0:01:44]}  Nb6 {[%clk 0:01:18]} 25. Nc6 {[%clk 0:01:44]}  Rxd1+ {[%clk 0:01:11]} 26. Qxd1 {[%clk 0:01:45]}  Qc7 {[%clk 0:00:36]} 27. Nxa5 {[%clk 0:01:11]}  Bxb2 {[%clk 0:00:18]} 28. Rc2 {[%clk 0:01:10]}  Ba3 {[%clk 0:00:16]} 29. Bxe6 {[%clk 0:01:07]}  Bc5 {[%clk 0:00:13]} 30. Bxc8 {[%clk 0:01:04]}  Nxc8 {[%clk 0:00:09]} 31. Nb3 {[%clk 0:01:00]}  b6 {[%clk 0:00:08]} 32. Nxc5 {[%clk 0:00:59]}  bxc5 {[%clk 0:00:09]} 33. Qc1 {[%clk 0:00:59]}  Nd6 {[%clk 0:00:06]} 34. Rxc5 {[%clk 0:01:00]}  Qa7 {[%clk 0:00:07]} 35. a5 {[%clk 0:01:00]}  Ne4 {[%clk 0:00:08]} 36. Rc8+ {[%clk 0:00:59]}  Kh7 {[%clk 0:00:08]} 37. Qb2 {[%clk 0:00:59]}  g5 {[%clk 0:00:07]} 38. g4 {[%clk 0:00:57]}  f6 {[%clk 0:00:05]} 39. Qc2 {[%clk 0:00:56]}  f5 {[%clk 0:00:04]} 1-0


[Site "https://www.chess.com"]